Cogmind - Beta 16 --- EXPLORER MODE // 2025.12.04 @ 08:53:30 Player: K.K.Y. Result: Destroyed by UK-WHL(R) with Subdweller Machine Gun Performance ------------- Evolutions (0) 0 Regions Visited (3) 600 Robots Destroyed (35) 175 Value Destroyed (393) 393 Prototype IDs (1) 20 Alien Tech Used (0) 0 Bonus (0) 0 TOTAL SCORE: 1188 Bonus ------- None Cogmind --------- Core Integrity 0/250 Matter 296/300 Energy 149/160 System Corruption 2% Temperature Cool (0) Movement Hovering (80) Location -10/Subcaves Parts ------- > --- POWER (1) -------- Light Nuclear Core > --- PROPULSION (2) --- Combat Airjet > --- UTILITY (3) ------ Experimental Sensor Array Seismic Detector > --- WEAPON (2) ------- Assault Rifle > --- INVENTORY (5) ---- Light Treads Improved Terrain Scanner Terrain Scan Processor Datajack Peak State ------------ > --- POWER ------------ Light Nuclear Core > --- PROPULSION ------- Combat Airjet > --- UTILITY ---------- Structural Scanner Experimental Sensor Array Seismic Detector > --- WEAPON ----------- Assault Rifle Mining Laser > --- INVENTORY -------- Light Treads Improved Terrain Scanner Terrain Scan Processor Datajack [Rating: 21] Favorites ----------- Power Ion Engine Engine Ion Engine Power Core Light Nuclear Core Propulsion Light Treads Treads Light Treads Hover Unit Combat Airjet Utility Structural Scanner Device Structural Scanner Weapon Assault Rifle Ballistic Gun Assault Rifle Special Weapon Mining Laser Build | -11 -10 -10 -10 ------- Run | Yrd Mat Min Sub Slots Evolved 1 | . 1 . . Power . | . . . . Propulsion . | . . . . Utility 1 | . 1 . . Weapon . | . . . . Parts Attached 16 | 7 2 7 . Power 2 | 1 . 1 . Engine 1 | 1 . . . Core 1 | . . 1 . Reactor . | . . . . Propulsion 4 | 2 1 1 . Treads 3 | 2 1 . . Leg . | . . . . Wheel . | . . . . Hover 1 | . . 1 . Flight . | . . . . Utility 6 | 2 1 3 . Device 6 | 2 1 3 . Storage . | . . . . Processor . | . . . . Hackware . | . . . . Protection . | . . . . Artifact . | . . . . Weapon 4 | 2 . 2 . Energy Gun . | . . . . Energy Cannon . | . . . . Ballistic Gun 3 | 2 . 1 . Ballistic Cannon . | . . . . Launcher . | . . . . Special Weapon 1 | . . 1 . Impact Weapon . | . . . . Slashing Weapon . | . . . . Piercing Weapon . | . . . . Special Melee Weapon . | . . . . Unidentified Prototypes 1 | . . 1 . Parts Lost 10 | . . 8 2 Power 1 | . . 1 . Propulsion 2 | . . 2 . Utility 4 | . . 3 1 Weapon 3 | . . 2 1 Highest Loss Streak 8 | . . 8 2 To Critical Strikes . | . . . . Average Backups 4 | 1 4 4 4 Power . | . . . . Propulsion . | . . 1 1 Utility 1 | . 1 1 2 Weapon 1 | . 1 1 . Tool/Special . | . . . . Unused Backups 4 | . 1 . 3 Power . | . . . . Propulsion . | . . . . Utility 3 | . 1 . 2 Weapon . | . . . . Tool/Special 1 | . . . 1 Average Slot Usage (%) 80 | . 98 56 85 Engine 6 | . 11 1 . Core 2 | . . 4 12 Treads 13 | . 24 1 . Hover 4 | . . 9 12 Device 32 | . 36 25 35 Ballistic Gun 18 | . 24 12 12 Peak Build Rating 21 | 7 8 21 21 Average Rating 10 | 5 7 12 20 On Entrance 9 | . 7 8 21 Avg Prop Armor Cover (%) 17 | . . 17 . Naked Turns 33 | . . 33 . Heaviest Build 12 | 11 12 12 11 Greatest Support 40 | 40 40 40 12 Greatest Overweight (x) 3 | . 2 3 . Average Overweight (x) . | . . . . Largest Inventory Capacity 5 | 5 5 5 5 Average Capacity 5 | 5 5 5 5 Most Carried 5 | 3 5 5 4 Average Carried 4 | 1 4 4 4 Final Capacity 5 | 5 5 5 5 Final Carried 5 | 3 5 4 4 Class Distribution -------------------- 93% | Hacker-Mutant 6% | Scavenger-Mutant Dominant Class ---------------- Hacker-Mutant | -10/Materials Hacker-Mutant | -10/Mines Scavenger-Mutant | -10/Subcaves Resources | -11 -10 -10 -10 ----------- Run | Yrd Mat Min Sub Matter Collected 836 | 295 193 329 19 Remotely . | . . . . Salvage Created 1052 | 124 277 622 29 Parts 88 | 8 19 60 1 Haulers Intercepted 2 | . 2 . . Recyclers Shooed 1 | . . 1 . Parts Field Recycled . | . . . . Retrieved Matter . | . . . . Parts Self-Destructed . | . . . . Prevented . | . . . . Parts Restored . | . . . . Kills | -11 -10 -10 -10 ------- Run | Yrd Mat Min Sub Combat Hostiles Destroyed 14 | . 2 11 1 Guns 13 | . 2 11 . Cannons 1 | . . . 1 Classes Destroyed 13 | 2 4 5 2 Worker 3 | . . 3 . Builder 4 | . . 4 . Tunneler 12 | 2 . 10 . Hauler 2 | . 2 . . Recycler 3 | 1 1 1 . Mechanic 1 | . 1 . . Watcher 2 | . 2 . . Swarmer 4 | . 2 2 . Grunt 2 | . . 2 . Sentry 1 | . . . 1 Demolisher 1 | . . 1 . Artisan 1 | . . . 1 Assembled 6 | . . 6 . Best Kill Streak 4 | 3 3 4 1 Combat Bots Only 4 | . 2 4 1 Max Kills in Single Turn 1 | 1 1 1 1 Gunslinging . | . . . . Exploded . | . . . . Melee . | . . . . Uniques/NPCs Destroyed . | . . . . Combat | -11 -10 -10 -10 -------- Run | Yrd Mat Min Sub Hostile Shots Fired 128 | . 8 102 18 Missed 42 | . 5 29 8 Hits 86 | . 3 73 10 Melee 11 | . . 11 . Projectile 75 | . 3 62 10 AOE 1 | . . 1 . Critical Strikes 2 | . . 1 1 Part Disruptions 2 | . . 2 . Damage Taken 846 | . 18 714 114 Core 257 | . . 221 36 Absorbed by Shields . | . . . . Ignored by Resistances 516 | . 13 433 70 Core Remaining (%) 100 | 100 . . . Volleys Fired 115 | 7 22 78 8 Largest 2 | 2 2 2 2 Hottest 120 | 40 40 100 120 Shots Fired 152 | 14 42 83 13 Gun 143 | 14 42 81 6 Cannon . | . . . . Launcher . | . . . . Special 9 | . . 2 7 Kinetic 143 | 14 42 81 6 Thermal 9 | . . 2 7 Explosive . | . . . . Electromagnetic . | . . . . Robot Hit Streak 56 | 12 22 56 9 Robot Miss Streak 2 | . 1 2 1 Penetration Max . | . . . . Secondary Targets . | . . . . Shots Hit Robots 134 | 12 37 73 12 Core Hits 61 | 4 12 42 3 Critical Kills 1 | . . 1 . Critical Parts Destroyed . | . . . . Critical Strikes 1 | . . 1 . Destroy 1 | . . 1 . Melee Attacks . | . . . . Impact . | . . . . Slashing . | . . . . Piercing . | . . . . Sneak Attacks . | . . . . Combat Hostiles . | . . . . Follow-up Attacks . | . . . . Damage Inflicted 1717 | 141 459 895 222 Guns 1573 | 141 459 895 78 Cannons . | . . . . Explosions . | . . . . Melee . | . . . . Ramming . | . . . . Kinetic 1573 | 141 459 895 78 Thermal 144 | . . . 144 Explosive . | . . . . Electromagnetic . | . . . . Impact . | . . . . Slashing . | . . . . Piercing . | . . . . Highest Corruption 2 | . . 2 2 Average Corruption 2 | . . 2 2 Corruption Purged . | . . . . Corruption Blocked . | . . . . Effects 9 | . . 9 . Message Errors 3 | . . 3 . Matter Fused 1 | . . 1 . Heat Flow Errors 1 | . . 1 . Energy Discharges 2 | . . 2 . Data Loss (minor) 1 | . . 1 . Misfires 1 | . . 1 . Overload Shots . | . . . . Overflow Damage . | . . . . Projectiles . | . . . . Explosions . | . . . . Melee . | . . . . Knockbacks . | . . . . Impact . | . . . . Kinetic . | . . . . Secondary . | . . . . Self-Inflicted Damage . | . . . . Shots . | . . . . Rammed . | . . . . Targets Rammed . | . . . . Kicked . | . . . . Crushed . | . . . . Highest Temperature 95 | . . 95 26 Average Temperature 19 | . . 19 17 Received Heat Transfer 448 | . 6 415 27 Siege Activations . | . . . . Martial Activations . | . . . . Shielding Activations . | . . . . Robots Disrupted . | . . . . Combat Hostiles . | . . . . Robots Corrupted . | . . . . Combat Hostiles . | . . . . Parts Fried . | . . . . Impact Corruptions . | . . . . Robots Melted . | . . . . Combat Hostiles . | . . . . Parts Melted . | . . . . Heat Transferred 300 | . . . 300 Parts Sabotaged . | . . . . Parts Stolen . | . . . . Parts Stripped . | . . . . Power Chain Reactions . | . . . . Alert | -11 -10 -10 -10 ------- Run | Yrd Mat Min Sub Maximum Alert Level . | . . . . Low Security (%) 100 | 100 100 100 . Level 1 . | . . . . Level 2 . | . . . . Level 3 . | . . . . Level 4 . | . . . . Level 5 . | . . . . High Security . | . . . . Max Security . | . . . . Peak Influence 50 | 10 50 45 . Initial . | . . . . Average 4 | 1 2 7 . Influence Increases 370 | 15 99 236 20 Destroy 0b10 Robot/C 160 | . 40 100 20 Destroy 0b10 Robot/NC 135 | 15 30 90 . Destroy Leader 48 | . 18 30 . Successful Hack 11 | . 11 . . Destroy Structure 1 | . . 1 . Lose Combat Pursuer 15 | . . 15 . Influence Decreases 370 | 15 99 235 21 Entered New Map 1 | . . . 1 Time Decay 369 | 15 99 235 20 Squads Dispatched . | . . . . Investigation . | . . . . Extermination . | . . . . Reinforcement . | . . . . Assault . | . . . . Garrison . | . . . . Intercept . | . . . . Searches Triggered . | . . . . Construction Impeded . | . . . . Haulers Reinforced . | . . . . Active Scanning Responses . | . . . . Cargo Convoy Interrupts . | . . . . Stealth | -11 -10 -10 -10 --------- Run | Yrd Mat Min Sub Distress Signals 1 | . 1 . . Communications Jammed . | . . . . Distress Signals . | . . . . Times Spotted 39 | . 5 32 2 Peak Tracking Total 20 | . 2 20 1 Tactical Retreats 5 | . . 5 . Traps | -11 -10 -10 -10 ------- Run | Yrd Mat Min Sub Traps Triggered 4 | . 4 . . Indirectly . | . . . . Trap Hack Attempts . | . . . . Triggered . | . . . . Disarmed . | . . . . Reprogrammed . | . . . . Reused . | . . . . Traps Extracted . | . . . . Installed . | . . . . Triggered . | . . . . Machines | -11 -10 -10 -10 ---------- Run | Yrd Mat Min Sub Machines Disabled . | . . . . Max in Single Turn . | . . . . Machines Repaired . | . . . . Machines Dismantled . | . . . . Machines Sabotaged . | . . . . Overloaded Fab Kills . | . . . . Hacking | -11 -10 -10 -10 --------- Run | Yrd Mat Min Sub Machines Accessed 6 | . 6 . . Terminals 6 | . 6 . . Fabricators . | . . . . Repair Stations . | . . . . Recycling Units . | . . . . Scanalyzers . | . . . . Garrison Access . | . . . . Total Hacks 7 | . 7 . . Successful 6 | . 6 . . Failed 1 | . 1 . . Catastrophic . | . . . . Database Lockouts . | . . . . Manual 7 | . 7 . . Terminals 7 | . 7 . . Fabricators . | . . . . Repair Stations . | . . . . Recycling Units . | . . . . Scanalyzers . | . . . . Garrison Access . | . . . . Terminal Hacks . | . . . . Fabricator Hacks . | . . . . Repair Station Hacks . | . . . . Recycling Unit Hacks . | . . . . Scanalyzer . | . . . . Garrison Access Hacks . | . . . . Unauthorized Hacks 6 | . 6 . . Terminals 6 | . 6 . . Botnet 6 | . 6 . . Fabricators . | . . . . Repair Stations . | . . . . Recycling Units . | . . . . Scanalyzers . | . . . . Garrison Access . | . . . . Data Cores Recovered . | . . . . Used . | . . . . Hacking Detections 2 | . 2 . . Full Trace Events . | . . . . Feedback Events . | . . . . Feedback Blocked . | . . . . Robot Schematics Acquired . | . . . . Robots Built . | . . . . Authchips . | . . . . Time . | . . . . Total Robot Build Rating . | . . . . Part Schematics Acquired . | . . . . Parts Built . | . . . . Authchips . | . . . . Time . | . . . . Total Part Build Rating . | . . . . Part Studies Acquired . | . . . . Parts Repaired . | . . . . Time . | . . . . Parts Recycled . | . . . . Recycled Matter . | . . . . Retrieved Matter . | . . . . Retrieved Components . | . . . . Parts Scanalyzed . | . . . . Part Schematics Acquired . | . . . . Parts Damaged . | . . . . Bothacking | -11 -10 -10 -10 ------------ Run | Yrd Mat Min Sub Used RIF Installer . | . . . . Robots Hacked . | . . . . Non-combat . | . . . . Combat . | . . . . Robot Hacks Applied . | . . . . Relay Couplers Released . | . . . . Fabnet Peak Effective % . | . . . . Robots Rewired . | . . . . Allies Hacked . | . . . . Hacks Repelled . | . . . . Allies | -11 -10 -10 -10 -------- Run | Yrd Mat Min Sub Total Allies . | . . . . Largest Group . | . . . . Highest-Rated Group . | . . . . Highest-Rated Ally . | . . . . Total Orders . | . . . . Ally Attacks . | . . . . Total Damage . | . . . . Kills . | . . . . Allies Corrupted . | . . . . Allies Melted . | . . . . Intel | -11 -10 -10 -10 ------- Run | Yrd Mat Min Sub Active Infowar (turns) 2011 | 103 1069 719 120 Sensors 1793 | 76 1069 528 120 Structural 1981 | 103 1069 703 106 Seismic 1691 | . 1049 522 120 Robot Analysis Total . | . . . . Derelict Logs Recovered 2 | . . 1 1 Drone Launches . | . . . . Drone Recoveries . | . . . . Exploration | -11 -10 -10 -10 ------------- Run | Yrd Mat Min Sub Turns Passed 2152 | 125 1069 838 120 Spaces Moved 1578 | 60 616 826 76 Core 128 | 7 1 120 . Treads 692 | 53 615 24 . Legs . | . . . . Wheels . | . . . . Hover 758 | . . 682 76 Flight . | . . . . Fastest Speed 50 | 50 150 50 80 Average Speed 113 | 147 159 79 80 Slowest Speed 200 | 160 160 200 80 Overloaded Moves . | . . . . Propulsion Burnouts . | . . . . Robots Hopped . | . . . . Potential Cave-ins . | . . . . Cave-ins Triggered . | . . . . Exploration Rate (%) 52 | 5 97 97 9 Regions Visited 3 Branch Regions 2 Pre-discovered Areas . | . . . . Known Exits Taken 3 | 1 1 1 . Unknown Exits Taken . | . . . . Scrap Searched 1 | . . 1 . Spaces Dug 1 | . . 1 . Terrain Destroyed 1 | . . 1 . Melee . | . . . . Projectile 1 | . . 1 . AOE . | . . . . Terrain Rammed . | . . . . Walls Destroyed . | . . . . Machines Disabled . | . . . . Actions | -11 -10 -10 -10 --------- Run | Yrd Mat Min Sub Total 1767 | 83 654 920 110 Wait 34 | . . 8 26 Move 1575 | 59 615 825 76 Hop . | . . . . Pick Up 17 | 10 5 2 . Fast Attach 13 | . 9 4 . Attach 12 | 7 2 3 . Detach . | . . . . Swap . | . . . . Drop 1 | . 1 . . Fire 115 | 7 22 78 8 Melee . | . . . . Ram . | . . . . Kick . | . . . . Crush . | . . . . Escape Stasis . | . . . . Rewire . | . . . . Trap . | . . . . Miscellaneous . | . . . . Route ------- -11/Scrapyard -10/Materials (discovered 6 exits: *Mat x3 / *Min x2 / Sub) -10/Mines (discovered 4 exits: *Mat x2 / Exi / *Sub) -10/Subcaves History --------- Turn | Location | Event 5 | -11/Scrapyard | Identified exit to Materials 5 | -11/Scrapyard | Discovered exit to Materials (range 15) 126 | -11/Scrapyard | Entered Materials 126 | -10/Materials | Evolved 1 slot: Utility x1 127 | -10/Materials | Met a group of wandering Federalists 313 | -10/Materials | Build established: Hacker-Mutant 361 | -10/Materials | Identified exit to Materials 361 | -10/Materials | Discovered exit to Materials (range 16) 369 | -10/Materials | Identified exit to Subcaves 369 | -10/Materials | Discovered exit to Subcaves (range 7) 504 | -10/Materials | Discovered exit to Materials (range 14) 681 | -10/Materials | Discovered exit to Materials (range 15) 903 | -10/Materials | Identified exit to Mines 903 | -10/Materials | Discovered exit to Mines (range 13) 1167 | -10/Materials | Discovered exit to Mines (range 13) 1195 | -10/Materials | Entered Mines 1196 | -10/Mines | Assembled infested the area 1201 | -10/Mines | Assisted by a Guerilla fighting off Assembled 1265 | -10/Mines | Core integrity fell below 50% 1295 | -10/Mines | Lost 8 parts (1p2n3u2w) 1326 | -10/Mines | Core integrity fell below 20% 1467 | -10/Mines | Discovered exit to Materials (range 6) 1555 | -10/Mines | Learned Materials terminal intel 1560 | -10/Mines | Found a damaged Exp. Sensor Array with a note attached 1561 | -10/Mines | Found Prototype Device 1561 | -10/Mines | Identified Exp. Sensor Array 1586 | -10/Mines | Discovered exit to Materials (range 6) 1704 | -10/Mines | Received a Rocket Launcher from a helpful Derelict 1913 | -10/Mines | Deemed a non-threat by the Exiles lab entrance 1913 | -10/Mines | Identified exit to Exiles 1913 | -10/Mines | Discovered exit to Exiles (range 6) 2023 | -10/Mines | Discovered exit to Subcaves (range 4) 2033 | -10/Mines | Entered Subcaves 2034 | -10/Subcaves | Approached by a straggling Scientist 2039 | -10/Subcaves | Learned location of 1 exit from Materials 2153 | -10/Subcaves | Destroyed by UK-WHL(R) with Subdweller Machine Gun Last Messages --------------- LOCATION=SUBCAVES AMBIENT_HEAT=-10 GOAL=ESCAPE 02034_ RF-AH8(c): "Thank the algorithms! I was beginning to lose hope I'd never make it past all the Subs lurking out here." 02039_ Acquired derelict log, extracted data. Data stored: Materials exits (x1). 02083_ Critical hit (Burn: +37). 02086_ Y-45 Defender destroyed. 02094_ Acquired 15 matter. 02116_ ME-Q8G(u) cries out in pain. 02116_ ME-Q8G(u) destroyed. 02119_ Subatomizers dissect the Wheel. 02123_ Acquired 4 matter. 02129_ UK-WHL(R): "LEAVESUB!" 02134_ Subatomizers dissect the Wheel. 02139_ Structural Scanner destroyed. 02148_ Subatomizers dissect the Wheel. 02151_ Mining Laser destroyed. Map ----- +----------------------------------------------------+ | ????????????????###### ######## #####??????? | | ???????????????????### ####### ####??????? | | ????????????????????## ## # ###?????? | | ????????????????????## ## ##?????? | | ????????????????????## #### ##?????? | | ????????????????????### #### ##?????? | | ???????????????????##### ### ##?? ###????? | | ???????????????????##### ##### ##?? ##????? | | ???????????????????## ##### ?? ## ##????? | | ??????????????????### ###?# ? ####????? | | ??????????????????### ###?## #### ####????? | | ??????????????????## ##?######## ##???????? | | ????????? ? ?????### ##?#####???? ##???????? | | ???? ###### ###?????????? ##???????? | | ????## ##### ####????????????????????? | | ????## ###?????????????????????? | | ????## ###?????????????????????? | | ???? #####???????????????????? | | ?????? ####???????????????????? | | ?????? ## ##???????????????????? | | ??????? ?#### = ##???????????????????? | | ???????????#### % ##???????????????????? | | ????????????#### ## ##???????????????????? | | ?????????????#### ## ##???????????????????? | | ??????????????#### ##### ###???????????????????? | | ???????????????########" @####???????????????????? | | ????????????????###### R####????????????????????? | | ????????????????### ###?????????????????????? | | ????????????????## ##?????????????????????? | | ????????????????######## """?????????????????????? | | ????????????????#########" " ????????????????????? | | ??????????????????????####"" ???????????????????? | | ????????????????????????### ?????????????????? | | ?????????????????????????## ????????????????? | | ??????????????????????????## ?????????????????? | | ??????????????????????????#### ??????????????????? | | ???????????????????????????### ??????????????????? | | ?????????????????????????????????????????????????? | | ?????????????????????????????????????????????????? | | ?????????????????????????????????????????????????? | | ?????????????????????????????????????????????????? | | ?????????????????????????????????????????????????? | | ?????????????????????????????????????????????????? | | ?????????????????????????????????????????????????? | | ?????????????????????????????????????????????????? | | ?????????????????????????????????????????????????? | | ?????????????????????????????????????????????????? | | ?????????????????????????????????????????????????? | | ?????????????????????????????????????????????????? | | ?????????????????????????????????????????????????? | +----------------------------------------------------+ Best States ------------- Heat Dissipation 25 Energy Generation 14 Energy Capacity 250 Matter Stores 300 Matter Capacity 300 Sight Range 16 Robot Scan Range 20 Terrain Scan Density 10 Resistance: KI 35 Resistance: TH 35 Resistance: EX 35 Resistance: EM 35 Resistance: I 35 Resistance: S 35 Resistance: P 35 Evasion (%) 50 Recoil Reduction 2 Offensive Hacking 20 Item Schematics ----------------- None Robot Schematics ------------------ None Fabricated ------------ Nothing Repaired ---------- Nothing Studied --------- None Alien Tech Used ----------------- None Achievements -------------- None Challenges ------------ None Game ------ Seed KineticHoverPenetrator Manual? 0 Play Time 00:12:19 Cumulative 164.4 hours Start 2025.12.04 @ 08:41:46 End 2025.12.04 @ 08:53:30 Sessions 1 Manual Loads 0 Difficulty Explorer Special Mode None Game No. 220 Rogue 0 Adventurer 0 Explorer 220 Win Type - Total 0 Types 0/0/0/0/0/0/0/0/0/0 Lore% 70 Gallery% 66 Achievement% 52 Wizard Run 0 Options --------- Layout 1 ASCII 0 Keyboard 0 Movement Mouse Keybinds 0 Fullscreen 1 Font 24/Smallcaps Map View 50x35 Zoom Use 0% Tactical HUD 1 Map Filters NONE Filters NONE Steam 1 RUN: 1fb986fc-585f-4467-baa7-422f1ba3ba80